bitfinex/quotes_ETHUSD_20240821
["timestamp","ask_amount","ask_price","bid_price","bid_amount"]
[1724277966633,10.96382423,2642.7,2642.6,2.3565]
[1724277967240,7.17982423,2642.7,2642.6,2.3565]
[1724277968951,7.72982423,2642.7,2642.6,2.3565]
[1724277970390,11.51382423,2642.7,2642.6,2.3565]
[1724277971056,0.94582423,2642.7,2642.6,2.59215]
[1724277972239,4.72982423,2642.7,2642.6,2.59215]
[1724277972585,4.72982423,2642.7,2642.6,2.3565]
[1724277977855,0.94582423,2642.7,2642.6,2.3565]
[1724277978050,0.39582423,2642.7,2642.6,2.3565]
[1724277979460,4.72982423,2642.7,2642.6,2.3565]
[1724277979724,8.51382423,2642.7,2642.6,2.3565]
[1724277979878,4.72982423,2642.7,2642.6,2.3565]
[1724277980993,0.94582423,2642.7,2642.6,2.59215]
[1724277982219,0.94582423,2642.7,2642.6,2.3565]
[1724277983804,8.51382423,2642.7,2642.6,2.3565]
[1724277984775,15.29782423,2642.7,2642.6,2.3565]
[1724277985389,11.51382423,2642.7,2642.6,2.3565]
[1724277986079,7.72982423,2642.7,2642.6,2.3565]
[1724277990654,11.51382423,2642.7,2642.6,2.3565]
[1724277995822,3.78453,2642.4,2641.8,2.405]
[1724277996023,3.78453,2642.4,2642.0,2.405]
[1724277996024,0.55,2642.3,2642.0,2.405]
[1724277996452,0.39585972,2642.2,2642.0,2.405]
[1724277998565,0.39585972,2642.2,2642.1,1.611]
[1724277998776,0.39585972,2642.2,2642.1,4.6924093]
[1724277999464,0.39585972,2642.2,2642.1,2.405]
[1724278003237,0.94585972,2642.2,2642.1,2.405]
[1724278006077,0.39585972,2642.2,2642.1,4.016]
[1724278009147,0.39585972,2642.2,2642.1,2.405]
[1724278009358,0.39585972,2642.2,2642.1,3.185115]
[1724278011278,0.39585972,2642.2,2642.1,12.365835]
[1724278011668,3.78351,2643.1,2642.3,3.78452]
[1724278011972,3.78274,2643.6,2642.4,2.401]
[1724278011973,0.39587431,2642.6,2642.4,2.401]
[1724278012335,3.78394,2642.8,2642.4,2.401]
[1724278012650,0.39587371,2642.6,2642.4,2.401]
[1724278013076,0.55,2642.5,2642.4,2.401]
[1724278016598,0.39587371,2642.6,2642.4,2.6411]
[1724278016753,0.39587371,2642.6,2642.5,2.4019]
[1724278018214,0.94587371,2642.6,2642.5,2.4019]
[1724278021932,0.39587371,2642.6,2642.5,2.4019]
[1724278023684,0.39587371,2642.6,2642.5,4.0129]
[1724278023949,0.39587371,2642.6,2642.5,8.955362]
[1724278024529,0.39587371,2642.6,2642.5,12.739652]
[1724278024704,3.78324,2643.3,2642.6,2.3149]
[1724278025036,0.39584594,2642.9,2642.6,2.3149]
[1724278025237,3.78324,2643.3,2642.8,1.584024]
[1724278025439,0.39584839,2642.9,2642.5,6.553392]
[1724278025762,3.7833,2643.2,2642.5,6.553392]
[1724278026047,0.39584918,2642.9,2642.5,10.337592]
[1724278026252,0.39584918,2642.9,2642.5,10.337572]
[1724278026408,0.39584918,2642.9,2642.6,1.0337572]
[1724278026843,0.39584918,2642.9,2642.7,3.784]
[1724278027618,0.39584918,2642.9,2642.6,1.0337572]
[1724278028015,0.39584918,2642.9,2642.5,1.611]
[1724278028457,0.39584918,2642.9,2642.6,2.3183]
[1724278032779,0.55,2642.8,2642.6,2.3183]
[1724278034050,0.39584918,2642.9,2642.6,2.3183]
[1724278034491,0.39584918,2642.9,2642.6,6.10245]
[1724278034696,0.39584918,2642.9,2642.7,2.3007]
[1724278039211,0.39584918,2642.9,2642.7,5.39487]
[1724278039416,0.39584918,2642.9,2642.8,2.4896]
[1724278041771,0.39584918,2642.9,2642.8,6.27346]
[1724278042209,0.39584918,2642.9,2642.8,10.05732]
[1724278042424,1.611,2644.0,2643.3,3.78306]
[1724278042619,5.39296,2644.2,2643.5,2.4896]
[1724278043070,4.17784364,2644.1,2643.5,2.4896]
[1724278043271,3.78215,2644.0,2643.5,2.4896]
[1724278043497,7.56439,2644.0,2643.5,2.4896]
[1724278043707,3.78215,2644.0,2643.5,2.4896]
[1724278044035,7.56437,2644.0,2643.5,2.4896]
[1724278044195,3.78215,2644.0,2643.6,2.4896]
[1724278044395,7.56439,2644.0,2643.6,2.4896]
[1724278044592,3.78215,2644.0,2643.6,2.4896]
[1724278045030,0.55,2643.9,2643.6,2.4896]
[1724278045251,3.78251,2643.8,2643.6,2.4896]
[1724278045406,0.55,2643.7,2643.6,2.4896]
[1724278046033,4.33257,2643.7,2643.6,2.4896]
[1724278046237,3.78297,2643.5,2643.3,2.4896]
[1724278046436,0.55,2643.4,2643.3,2.4896]
[1724278047186,3.78239,2643.9,2643.3,2.4896]
[1724278047318,0.55,2643.8,2643.3,2.4896]
[1724278048224,0.55,2643.8,2643.3,4.1006]
[1724278048624,0.55,2643.8,2643.3,2.4896]
[1724278049044,4.33247,2643.8,2643.3,2.4896]
[1724278049257,3.78259,2643.7,2643.3,2.4896]
[1724278051069,3.78264,2643.7,2643.3,2.4896]
[1724278051230,4.33279,2643.6,2643.3,2.4896]
[1724278051622,0.55,2643.6,2643.3,2.4896]
[1724278053460,4.33272,2643.6,2643.3,2.4896]
[1724278054813,0.55,2643.6,2643.3,2.4896]
[1724278057422,3.78237,2643.9,2643.3,0.41006]
[1724278057623,3.78237,2643.9,2643.4,2.3949]
[1724278057624,0.55,2643.8,2643.4,2.3949]
[1724278057853,4.33243,2643.8,2643.4,2.3949]
[1724278058066,8.11495,2643.8,2643.4,2.3949]
[1724278058237,0.39577454,2643.7,2643.4,2.3949]
[1724278061422,3.78286,2643.5,2643.0,2.3204]
[1724278061779,3.78272,2643.6,2643.3,2.3204]
[1724278061925,0.55,2643.5,2643.3,2.3204]
[1724278062140,0.55,2643.5,2643.3,2.71354]
[1724278062338,0.55,2643.6,2643.3,2.71354]
[1724278064188,3.78291,2643.5,2643.3,2.3204]
[1724278064373,3.78343,2643.1,2642.7,14.4694]
[1724278064552,7.56696,2643.1,2642.7,2.3194]
[1724278064889,0.55,2643.0,2642.7,2.3194]
[1724278065663,3.78343,2643.1,2642.7,2.3194]
[1724278065979,0.55,2643.0,2642.7,2.3194]
[1724278066983,3.78307,2643.4,2642.8,3.9167]
[1724278067284,4.33316,2643.3,2642.9,2.3057]
[1724278067691,3.78331,2643.2,2642.7,2.3057]
[1724278067902,3.78368,2643.0,2642.6,7.49]
[1724278068052,3.78382,2642.9,2642.6,7.49]
[1724278068432,0.55,2642.8,2642.6,7.49]
[1724278070402,0.55,2642.8,2642.5,2.3057]
[1724278070947,4.33393,2642.8,2642.5,2.3057]
[1724278071546,4.33393,2642.8,2642.3,2.3057]
[1724278071747,3.78423,2642.6,2642.3,2.3057]
[1724278071993,4.33429,2642.5,2642.2,7.49]
[1724278072147,0.55,2642.5,2642.1,1.611]
[1724278072349,0.55,2642.5,2642.2,2.3057]
[1724278072893,3.7839,2642.8,2642.2,2.3057]
[1724278073100,0.55,2642.7,2642.4,2.3057]
[1724278073264,7.3338,2642.9,2642.4,2.3057]
[1724278073484,3.78389,2642.8,2642.4,2.3057]
[1724278073667,4.18005568,2642.6,2642.4,2.3057]
[1724278073868,0.55,2642.5,2642.4,2.3057]
[1724278075828,0.39588568,2642.6,2642.4,2.53627]
[1724278076381,0.39588568,2642.6,2642.4,2.3057]
[1724278077595,4.33429,2642.5,2642.2,2.4564]
[1724278077807,3.78446,2642.4,2642.2,2.4564]
[1724278077987,4.33429,2642.5,2642.2,2.4564]
[1724278077988,0.55,2642.3,2642.2,2.4564]
[1724278078330,4.33429,2642.5,2642.2,2.4564]
[1724278080341,0.55,2642.5,2642.2,2.4564]
[1724278080539,0.55,2642.5,2642.2,2.86314]
[1724278083901,0.55,2642.5,2642.2,2.4564]
[1724278084104,1.611,2642.3,2641.4,3.08640233]
[1724278084335,3.78553,2641.7,2641.4,3.08640233]
[1724278084634,3.78553,2641.7,2641.4,2.493]
[1724278084822,0.55,2641.6,2641.4,2.493]
[1724278085747,3.78525,2641.9,2641.4,2.493]
[1724278085748,0.55,2641.8,2641.4,2.493]
[1724278086035,4.33533,2641.8,2641.4,2.493]
[1724278088851,4.18145848,2641.7,2641.4,2.493]
[1724278089172,0.55,2641.6,2641.4,2.493]
[1724278090592,7.57144,2641.5,2641.4,2.493]
[1724278091079,8.12144,2641.5,2641.4,2.493]
[1724278091279,4.33572,2641.5,2641.4,2.493]
[1724278091641,4.18155848,2641.7,2641.4,2.493]
[1724278091840,0.55,2641.6,2641.4,2.493]
[1724278097902,3.78572,2641.5,2641.4,2.493]
[1724278098198,4.33572,2641.5,2641.4,2.493]
[1724278098549,0.55,2641.5,2641.4,2.493]
[1724278101198,0.55,2641.6,2641.4,2.493]
[1724278110202,0.55,2641.6,2641.4,3.282101]
[1724278110406,0.55,2641.6,2641.5,2.4852]
[1724278122607,4.33558,2641.6,2641.1,2.2843]
[1724278122815,3.78574,2641.5,2641.1,2.2843]
[1724278122984,0.55,2641.4,2641.1,2.2843]
[1724278123398,0.3960429,2641.3,2641.1,2.2843]
[1724278123631,0.55,2641.2,2641.1,2.2843]
[1724278125745,0.55,2641.2,2640.9,1.612]
[1724278125746,0.55,2641.2,2640.9,2.4626]
[1724278131294,0.55,2641.2,2640.9,5.24010611]
[1724278131495,0.55,2641.2,2640.9,9.02668611]
[1724278131729,0.55,2641.2,2641.0,2.3314]
[1724278138452,4.33617,2641.2,2640.8,2.3895]
[1724278141929,1.612,2641.1,2640.6,0.75824895]
[1724278142128,1.612,2641.1,2640.5,2.74492919]
[1724278142129,3.7868,2640.8,2640.5,2.74492919]
[1724278142332,0.55,2640.7,2640.5,2.74492919]
[1724278143842,0.39614174,2640.8,2640.6,1.612]
[1724278144042,0.39614174,2640.8,2640.7,2.3895]
[1724278144244,0.94614174,2640.8,2640.7,2.3895]
[1724278147373,0.94614174,2640.8,2640.4,4.1058]
[1724278147931,0.94614174,2640.8,2640.4,2.4938]
[1724278147932,4.33687,2640.7,2640.4,2.4938]
[1724278148172,0.55,2640.7,2640.4,2.4938]
[1724278148369,0.55,2640.7,2640.4,4.56377715]
[1724278149274,0.55,2640.7,2640.4,2.95177715]
[1724278150133,4.33696,2640.7,2640.4,2.4938]
[1724278150370,3.78705,2640.6,2640.4,2.4938]
[1724278150695,0.55,2640.5,2640.4,2.4938]
[1724278151679,0.39614174,2640.8,2640.7,2.4293]
[1724278151881,0.39614174,2640.8,2640.7,4.28423]
[1724278152046,0.39614174,2640.8,2640.7,2.4293]
[1724278152462,0.39614174,2640.8,2640.5,4.0413]
[1724278152667,0.39614174,2640.8,2640.5,1.612]
[1724278152846,0.55,2640.7,2640.6,2.4293]
[1724278153249,0.39614174,2640.8,2640.6,2.4293]
[1724278153477,0.39614174,2640.8,2640.7,4.43443]
[1724278153733,0.94614174,2640.8,2640.7,4.43443]
[1724278156469,0.39614174,2640.8,2640.7,4.43443]
[1724278156667,0.39614174,2640.8,2640.7,12.00817]
[1724278157072,7.57153,2641.5,2640.8,2.3556]
[1724278157280,0.39611127,2641.2,2641.1,2.3556]
[1724278157773,0.39611127,2641.2,2640.8,2.3238]
[1724278158090,0.55,2641.1,2640.8,2.3238]
[1724278158676,4.33632,2641.1,2640.8,2.3238]
[1724278159190,0.55,2641.1,2640.8,2.3238]
[1724278159685,0.55,2641.1,2640.8,2.757793]
[1724278159846,0.55,2641.1,2640.8,2.3238]
[1724278160277,0.55,2641.1,2640.8,3.9358]
[1724278161161,0.55,2641.1,2640.9,2.3238]
[1724278161360,0.55,2641.1,2641.0,1.612]
[1724278161556,0.55,2641.1,2641.0,3.9358]
[1724278161760,0.55,2641.1,2641.0,4.708038]
[1724278161961,0.55,2641.1,2641.0,3.096038]
[1724278162162,0.55,2641.1,2641.0,2.3238]
[1724278165357,0.55,2641.1,2640.8,4.0022]
[1724278166555,0.55,2641.1,2640.9,2.3992]
[1724278166958,0.55,2641.1,2641.0,1.612]
[1724278167161,0.55,2641.1,2641.0,4.0112]
[1724278171633,0.55,2641.1,2641.0,4.790976]
[1724278175199,0.39611127,2641.2,2641.1,6.0503]
[1724278175641,0.39611127,2641.2,2641.1,9.8366]
[1724278183325,0.39611127,2641.2,2641.1,6.0503]
[1724278190185,0.39611127,2641.2,2641.1,9.8366]
[1724278190350,0.39611127,2641.2,2641.1,11.0594376]
[1724278190873,3.78412,2642.7,2641.9,3.78513]
[1724278191069,3.78436,2642.5,2642.0,3.9779]
[1724278191278,3.78436,2642.5,2642.0,4.754194]
[1724278191579,3.78436,2642.5,2642.1,1.612]
[1724278192191,1.96800475,2642.6,2642.1,1.612]
[1724278192493,0.39600475,2642.6,2642.5,1.612]
[1724278192640,0.39600475,2642.6,2642.5,2.388241]
[1724278193236,7.5969724,2643.2,2642.5,6.172491]
[1724278193554,4.17943262,2643.1,2642.5,2.388241]
[1724278193943,3.7836,2643.0,2642.5,2.388241]
[1724278194118,3.7836,2643.0,2642.5,1.612]
[1724278194398,7.56728,2643.0,2642.5,1.612]
[1724278194551,3.7836,2643.0,2642.4,3.9779]
[1724278195899,0.55,2642.9,2642.4,3.9779]
[1724278196103,0.55,2642.9,2642.4,5.132608]
[1724278197408,0.55,2642.9,2642.4,8.917038]
[1724278199125,0.55,2642.9,2642.4,12.701468]
[1724278199274,0.55,2642.9,2642.4,12.701398]
[1724278199480,0.55,2643.0,2642.4,12.701328]
[1724278199696,0.55,2643.0,2642.5,1.2701328]
[1724278200415,1.572,2642.9,2642.1,13.70896]
[1724278200595,0.55,2642.8,2642.2,5.39671]
[1724278201193,0.55,2642.8,2642.3,6.21876]
[1724278201375,4.33394,2642.8,2642.2,1.612]
[1724278201610,4.33394,2642.8,2642.3,1.526236]
[1724278201994,0.55,2642.8,2642.3,1.526236]
[1724278202399,4.33394,2642.8,2642.3,1.526236]
[1724278203385,0.55,2642.8,2642.4,1.612]
[1724278203578,0.55,2642.8,2642.5,0.3138236]
[1724278203886,0.55,2642.8,2642.3,1.526236]
[1724278205213,0.55,2642.8,2642.3,5.310806]
[1724278205815,0.55,2642.8,2642.3,1.526236]
[1724278207026,0.55,2642.8,2642.3,9.095296]
[1724278207328,2.00792262,2643.1,2642.5,2.4384]
[1724278207329,4.33361,2643.0,2642.5,2.4384]
[1724278207827,5.35582,2642.9,2642.2,4.0733]
[1724278207985,0.55,2642.8,2642.3,3.78448]
[1724278208183,4.33357,2643.0,2642.3,3.78448]
[1724278208383,3.78375,2642.9,2642.3,3.78448]
[1724278208589,0.55,2642.8,2642.4,0.785778]
[1724278208823,4.33396,2642.8,2642.2,4.0733]
[1724278209028,3.78402,2642.7,2642.1,7.49]
[1724278209226,0.55,2642.6,2642.1,7.49]
[1724278209431,3.78439,2642.5,2642.0,23.5133]
[1724278209632,0.55,2642.4,2642.0,23.5133]
[1724278210353,2.122,2642.4,2642.0,24.98444067]
[1724278210506,5.90645,2642.4,2642.0,19.44]
[1724278210845,5.90645,2642.4,2641.8,7.49]
[1724278211420,0.55,2642.4,2641.9,1.612]
[1724278211631,4.33432,2642.5,2641.9,1.612]
[1724278211835,4.33432,2642.5,2641.9,3.513347]
[1724278212783,3.78444,2642.4,2641.9,3.513347]
[1724278212994,0.55,2642.3,2641.9,1.612]
[1724278213284,0.55,2642.3,2641.8,7.49]
[1724278214292,3.78486,2642.1,2641.8,7.49]
[1724278214438,0.55,2642.0,2641.8,7.49]
[1724278214643,0.55,2642.0,2641.5,1.612]
[1724278214875,0.55,2642.0,2641.5,4.78819427]
[1724278215386,0.55,2642.0,2641.5,8.57388427]
[1724278215573,0.55,2642.1,2641.5,8.57388427]
[1724278215976,3.78504,2642.0,2641.4,7.49]
[1724278216272,5.35737,2641.8,2641.4,7.49]
[1724278216782,0.55,2641.7,2641.4,7.49]
[1724278219109,0.55,2641.7,2641.3,4.0121]
[1724278219313,0.55,2641.7,2641.4,0.779822]
[1724278222607,4.33546,2641.7,2641.3,4.0121]
[1724278222909,4.33546,2641.7,2641.3,1.612]
[1724278224786,4.73147086,2641.7,2641.3,1.612]
[1724278225225,0.94601086,2641.7,2641.3,1.612]
[1724278229971,4.73149086,2641.7,2641.3,1.612]
[1724278230447,4.73149086,2641.7,2641.1,5.39829]
[1724278230602,4.73149086,2641.7,2641.1,7.305978]
[1724278231116,0.94601086,2641.7,2641.1,7.305888]
[1724278231319,3.78588,2641.4,2641.1,1.907688]
[1724278231633,4.33607,2641.3,2640.9,1.612]
[1724278231832,3.78616,2641.2,2640.9,1.612]
[1724278232155,0.55,2641.1,2640.9,1.612]
[1724278232348,0.55,2641.1,2640.9,2.29400039]
[1724278233765,0.55,2641.2,2640.9,2.29400039]
[1724278234434,3.78586,2641.5,2640.9,2.29400039]
[1724278234435,4.33596,2641.4,2640.9,2.29400039]
[1724278238388,3.78603,2641.3,2640.9,2.29400039]
[1724278238687,0.55,2641.2,2640.9,2.29400039]
[1724278240206,0.39607033,2641.1,2640.9,2.29400039]
[1724278240409,0.39607033,2641.1,2641.0,0.60807204]
[1724278245291,0.39607033,2641.1,2641.0,3.02687204]
[1724278246505,0.39607033,2641.1,2641.0,6.81331204]
[1724278246707,0.39607033,2641.1,2641.0,1.63701291]
[1724278246917,0.39607033,2641.1,2640.8,2.4188]
[1724278247215,4.18239033,2641.1,2640.8,2.4188]
[1724278247577,4.18239033,2641.1,2640.7,1.612]
[1724278248034,0.55,2641.0,2640.7,1.612]
[1724278249203,0.55,2641.0,2640.6,2.4188]
[1724278249415,0.55,2641.0,2640.3,4.0308]
[1724278249416,4.33658,2641.0,2640.3,4.0308]
[1724278249630,4.33658,2641.0,2640.3,2.4188]
[1724278249777,1.572,2640.9,2640.3,2.4188]
[1724278250305,0.55,2640.8,2640.3,2.4188]
[1724278250554,4.33675,2640.8,2640.3,3.25999963]
[1724278251325,0.55,2640.8,2640.4,1.612]
[1724278252466,0.55,2640.8,2640.4,5.3993]
[1724278252652,0.55,2640.9,2640.4,5.3993]
[1724278252825,0.55,2640.9,2640.4,6.64397796]
[1724278255400,0.39613445,2640.8,2640.4,6.64397796]
[1724278255709,0.55,2640.7,2640.4,6.64397796]
[1724278257118,0.55,2640.7,2640.6,2.3239]
[1724278261938,0.39613445,2640.8,2640.7,3.78687]
[1724278262121,0.39613445,2640.8,2640.3,6.22572]
[1724278262305,4.18287445,2640.8,2640.3,2.4384]
[1724278262501,3.78698,2640.7,2640.3,2.4384]
[1724278262724,3.78703,2640.6,2640.1,8.08373368]
[1724278262891,3.78703,2640.6,2640.0,6.22626]
[1724278263430,0.55,2640.5,2640.0,6.22626]
[1724278265013,0.55,2640.5,2640.0,8.137902]
[1724278265220,0.55,2640.5,2640.1,1.612]
[1724278266605,0.55,2640.5,2640.1,5.39971]
[1724278266807,3.78688,2640.7,2640.1,5.39971]
[1724278266808,0.55,2640.6,2640.1,5.39971]
[1724278267004,0.55,2640.6,2640.1,6.7534862]
[1724278267708,4.33702,2640.6,2640.1,2.9657762]
[1724278269357,4.33702,2640.6,2640.1,1.612]
[1724278270655,0.39617226,2640.5,2640.1,1.612]
[1724278270825,0.55,2640.4,2640.1,1.612]
[1724278271021,0.39617226,2640.5,2640.2,6.28381]
[1724278271226,0.39617226,2640.5,2640.3,1.168347]
[1724278273255,0.39617226,2640.5,2640.2,2.4963]
[1724278274822,3.7883,2639.7,2639.6,0.59380162]
[1724278275025,3.7883,2639.7,2639.3,0.128679]
[1724278275026,7.57746,2639.4,2639.3,0.128679]
[1724278275267,12.97819,2639.4,2639.3,0.128679]
[1724278275578,21.33892,2639.4,2639.3,0.128679]
[1724278275871,25.67765,2639.4,2639.3,9e-06]
[1724278277572,25.67765,2639.4,2637.9,2.3807]
[1724278277573,3.7904,2638.3,2637.9,2.3807]
[1724278277874,7.58081,2638.3,2637.9,2.3807]
[1724278278169,0.55,2638.2,2637.9,2.3807]
[1724278278568,0.55,2638.4,2637.9,2.3807]
[1724278280531,0.55,2638.6,2637.9,2.3807]
[1724278280738,0.55,2638.6,2638.0,0.617164]
[1724278280963,3.79005,2638.5,2638.0,0.617164]
[1724278281237,0.55,2638.4,2637.9,2.3807]
[1724278281636,0.55,2638.4,2637.8,3.79094]
[1724278281843,0.55,2638.4,2637.6,3.7913]
[1724278282173,3.79041,2638.3,2637.6,3.7913]
[1724278282373,0.55,2638.2,2637.7,0.61565]
[1724278284335,0.55,2638.2,2637.7,4.40682]
[1724278285547,0.55,2638.2,2637.8,2.4628]
[1724278285871,4.34017,2638.4,2637.8,2.4628]
[1724278286079,0.39648906,2638.2,2637.8,2.4628]
[1724278286262,0.55,2638.1,2637.8,2.4628]
[1724278286596,0.55,2638.1,2637.8,3.12908898]
[1724278287681,0.39648906,2638.2,2637.8,3.12908898]
[1724278288378,0.39648906,2638.2,2638.1,10.044]
[1724278288881,3.78947,2638.9,2638.2,3.79037]
[1724278289044,0.39642902,2638.7,2638.2,3.79037]
[1724278289380,0.39642902,2638.7,2638.3,1.004377]
[1724278290565,0.39642902,2638.7,2638.4,2.4628]
[1724278302479,3.78963,2638.8,2638.4,2.4628]
[1724278302676,0.55,2638.7,2638.4,2.4628]
[1724278305599,4.33977,2638.7,2638.4,2.4628]
[1724278306589,3.78999,2638.6,2638.4,2.4628]
[1724278307036,0.55,2638.5,2638.4,2.4628]
[1724278309978,4.34003,2638.5,2638.2,2.3694]
[1724278310275,0.55,2638.5,2638.2,2.3694]
[1724278311020,0.55,2638.5,2638.2,6.15979]
[1724278311220,0.55,2638.7,2638.3,0.995037]
[1724278311651,0.55,2638.7,2638.4,2.3694]
[1724278314770,0.55,2638.8,2638.4,6.15953]
[1724278314973,0.55,2638.9,2638.4,6.15953]
[1724278316409,0.55,2638.9,2638.4,2.3694]
[1724278316773,0.55,2638.9,2638.4,6.15948]
[1724278316981,0.55,2638.9,2638.6,2.4589]
[1724278317208,3.0,2639.3,2638.6,2.4589]
[1724278317209,4.33933,2639.0,2638.6,2.4589]
[1724278320592,0.55,2639.0,2638.6,2.4589]
[1724278320805,4.18549975,2639.0,2638.6,2.4589]
[1724278321007,0.55,2638.9,2638.6,2.4589]
[1724278321832,0.39617975,2639.0,2638.9,2.4589]
[1724278321989,0.39617975,2639.0,2638.9,10.0378]
[1724278322198,8.17014884,2640.0,2639.2,2.4589]
[1724278322199,3.78794,2640.0,2639.2,2.4589]
[1724278322391,0.39618091,2639.6,2639.2,2.4589]
[1724278322591,7.57649,2639.8,2639.2,2.4589]
[1724278322790,3.78832,2639.7,2639.2,2.4589]
[1724278323004,0.39615884,2639.6,2639.2,2.4589]
[1724278323206,3.78868,2639.5,2639.2,2.4589]
[1724278324628,0.55,2639.4,2639.2,2.4589]
[1724278325722,0.55,2639.5,2639.2,2.4589]
[1724278326551,0.55,2639.5,2639.4,2.4589]
[1724278326754,0.39615884,2639.6,2639.4,2.4589]
[1724278326919,0.39615884,2639.6,2639.5,2.4966]
[1724278328832,0.39615884,2639.6,2639.1,2.2565]
[1724278329150,0.55,2639.5,2639.1,6.04565]
[1724278329498,0.55,2639.5,2639.2,2.4908]
[1724278334521,4.3386,2639.5,2639.2,2.4908]
[1724278336066,4.3386,2639.5,2638.4,2.2702]
[1724278336067,3.78917,2639.1,2638.4,2.2702]
[1724278336368,3.78946,2638.9,2638.4,2.2702]
[1724278336860,0.55,2638.8,2638.4,2.2702]
[1724278337470,4.33935,2639.0,2638.4,2.2702]
[1724278337825,3.7895,2638.9,2638.4,2.2702]
[1724278338028,0.55,2638.8,2638.4,2.2702]
[1724278339087,0.55,2638.8,2638.4,2.88857148]
[1724278340037,4.33966,2638.8,2638.4,2.2702]
[1724278341142,0.55,2638.8,2638.4,2.2702]
[1724278341571,0.55,2638.8,2638.4,2.88857148]
[1724278342478,0.55,2638.8,2637.7,0.78535008]
[1724278342479,12.94467,2637.9,2637.7,0.78535008]
[1724278342776,3.79261,2636.7,2636.6,0.128679]
[1724278343073,11.46022,2636.7,2636.6,0.128679]
[1724278343273,7.58522,2636.7,2636.6,0.128679]
[1724278343680,12.73690001,2636.7,2636.6,0.128679]
[1724278343838,4.34261,2636.7,2636.6,0.128679]
[1724278344237,0.55,2636.7,2636.6,0.76250751]
[1724278344536,3.79219,2637.0,2636.6,0.76250751]
[1724278344537,0.55,2636.9,2636.6,0.76250751]
[1724278344737,0.55,2636.9,2636.7,0.63382851]
[1724278344969,0.55,2637.0,2636.7,0.63382851]
[1724278345142,0.55,2637.1,2636.7,0.63382851]
[1724278345982,4.34206,2637.1,2636.7,0.63382851]
[1724278346142,4.34206,2637.1,2636.6,0.128679]
[1724278346579,0.55,2637.1,2636.6,0.128679]
[1724278347668,7.34184,2637.3,2636.6,0.128679]
[1724278348299,3.79192,2637.2,2636.6,0.128679]
[1724278348451,0.55,2637.1,2636.6,0.128679]
[1724278351789,0.55,2637.1,2636.6,3.921319]
[1724278352021,0.55,2637.2,2636.7,4.5640209]
[1724278352713,4.34191,2637.2,2636.6,0.128679]
[1724278353450,0.39636302,2637.1,2636.6,0.128679]
[1724278353649,0.55,2637.0,2636.6,0.128679]
[1724278354114,0.55,2637.0,2636.7,2.2606]
[1724278354405,0.55,2637.0,2636.7,6.0532]
[1724278355271,0.39636302,2637.1,2636.7,7.0506669]
[1724278355466,0.39636302,2637.1,2636.7,7.0506069]
[1724278360308,0.39636302,2637.1,2636.7,7.0505869]
[1724278365527,0.39636302,2637.1,2636.8,2.283]
[1724278365729,0.39636302,2637.1,2637.0,9.86736]
[1724278365928,3.79039,2638.3,2637.7,3.79116]
[1724278366127,7.58079,2638.3,2637.8,2.283]
[1724278366347,0.39624725,2638.1,2637.8,2.283]
[1724278366506,0.39624725,2638.1,2637.8,6.07401]
[1724278366692,0.39624725,2638.1,2638.0,3.79075]
[1724278367700,0.39624725,2638.1,2637.9,0.607401]
[1724278368231,3.79025,2638.4,2637.9,0.607401]
[1724278368432,3.79025,2638.4,2637.8,2.283]
[1724278368935,0.55,2638.3,2637.8,2.283]
[1724278369428,0.55,2638.4,2637.8,2.283]
[1724278369635,0.55,2638.4,2637.8,6.07399]
[1724278370137,0.39629083,2638.5,2637.9,2.4638]
[1724278370335,0.55,2638.4,2638.0,3.79066]
[1724278371598,0.55,2638.4,2638.0,7.58131]
[1724278371838,0.55,2638.4,2638.0,7.58132]
[1724278372422,0.55,2638.4,2638.0,8.23208175]
[1724278373761,0.39629083,2638.5,2638.0,8.23208175]
[1724278374052,0.55,2638.4,2638.0,8.23208175]
[1724278374256,0.55,2638.4,2638.0,4.44141175]
[1724278374801,0.55,2638.4,2638.1,3.79058]
[1724278376580,0.55,2638.4,2638.0,4.44141175]
[1724278376722,0.55,2638.4,2638.2,3.79043]
[1724278377965,0.55,2638.4,2638.1,1.06957918]
[1724278377966,0.39629083,2638.5,2638.3,6.10751]
[1724278378142,0.39629083,2638.5,2638.4,7.58034]
[1724278378953,0.39629083,2638.5,2638.4,13.68771]
[1724278379286,3.78874,2639.4,2638.8,3.78956]
[1724278379488,0.3962296,2639.0,2638.8,3.78956]
[1724278379779,3.78874,2639.4,2638.8,3.78956]
[1724278379947,0.3962314,2639.0,2638.8,3.78956]
[1724278380128,3.78874,2639.4,2638.8,3.78956]
[1724278380529,0.39622575,2639.0,2638.8,3.78956]
[1724278380759,3.78874,2639.4,2638.8,3.78956]
[1724278380965,0.39622818,2639.0,2638.8,3.78956]
[1724278381287,0.55,2639.3,2638.8,3.78956]
[1724278381479,0.39622789,2639.0,2638.8,3.78956]
[1724278381832,0.39622789,2639.0,2638.6,3.78977]
[1724278382029,0.39622789,2639.0,2638.8,3.78958]
[1724278383368,0.39622789,2639.0,2638.8,3.78952]
[1724278384369,0.39622789,2639.0,2638.9,6.10665]
[1724278385767,0.39622789,2639.0,2638.9,9.8961]
[1724278386286,4.38200282,2640.1,2638.9,6.10665]
[1724278386446,3.78784,2640.1,2639.4,9.8789]